bitfinex/quotes_ETHUSD_20250110
["timestamp","ask_amount","ask_price","bid_price","bid_amount"]
[1736527328251,0.0953337,3250.6,3250.2,3.7551]
[1736527328520,0.0953337,3250.6,3250.5,9.57615951]
[1736527328678,0.0953337,3250.6,3250.5,9.86815951]
[1736527328883,0.0953337,3250.6,3250.5,10.85497546]
[1736527330043,0.0953337,3250.6,3250.5,10.86247546]
[1736527330188,0.0953337,3250.6,3250.5,11.47288547]
[1736527330516,0.0953337,3250.6,3250.5,11.48038547]
[1736527331047,0.0953337,3250.6,3250.5,12.03788547]
[1736527331346,0.0953337,3250.6,3250.5,12.85028547]
[1736527332018,0.0953337,3250.6,3250.5,12.84278547]
[1736527332580,0.0953337,3250.6,3250.5,12.29278547]
[1736527332786,0.0953337,3250.6,3250.1,4.27861951]
[1736527333187,0.0953337,3250.6,3250.2,0.62770735]
[1736527333611,0.0953337,3250.6,3249.9,0.292]
[1736527333612,0.8009,3250.5,3250.0,3.0]
[1736527333942,0.8009,3250.5,3249.9,3.36899]
[1736527334504,0.8962337,3250.5,3249.9,3.36899]
[1736527334708,0.8962337,3250.5,3250.0,0.36841339]
[1736527334950,0.8962337,3250.5,3250.0,3.44533339]
[1736527335107,0.8962337,3250.5,3250.0,0.36841339]
[1736527335312,0.8962337,3250.5,3249.7,3.49971951]
[1736527335523,0.03083384,3250.4,3249.7,3.07718]
[1736527335711,0.8962337,3250.5,3249.8,0.03076938]
[1736527335905,0.03083384,3250.4,3249.3,3.49971951]
[1736527336111,0.8962337,3250.5,3249.8,3.07711]
[1736527336605,0.8962337,3250.5,3249.9,0.03076667]
[1736527337955,0.8962337,3250.5,3249.8,3.07708]
[1736527338139,0.8962337,3250.5,3249.9,0.03076668]
[1736527338458,0.8962337,3250.5,3249.9,3.10777668]
[1736527338622,0.8962337,3250.5,3249.9,0.34154435]
[1736527338820,0.8962337,3250.5,3250.1,3.49971951]
[1736527339034,0.8962337,3250.5,3250.0,3.07689]
[1736527339235,0.8962337,3250.5,3250.2,0.03076423]
[1736527339440,5.38,3252.7,3250.7,3.07625]
[1736527339642,0.822,3252.1,3252.0,3.07503]
[1736527339814,0.822,3252.1,3252.0,3.49971951]
[1736527340015,0.822,3252.1,3251.8,3.07518]
[1736527340223,0.822,3252.1,3251.9,0.03074817]
[1736527340415,0.822,3252.1,3251.6,3.79071951]
[1736527340611,0.822,3252.1,3251.6,4.46979146]
[1736527340829,0.782,3252.5,3251.7,3.0]
[1736527341088,0.782,3252.5,3251.8,3.10587821]
[1736527341234,0.782,3252.5,3251.9,3.07505]
[1736527341569,0.782,3252.5,3251.8,0.03074821]
[1736527341731,0.782,3252.5,3252.0,3.07498]
[1736527342153,0.782,3252.5,3251.6,3.79071951]
[1736527342353,0.03083384,3252.4,3251.6,6.89682725]
[1736527342527,0.782,3252.5,3252.0,3.07494]
[1736527342741,0.8063,3252.8,3252.1,3.10558773]
[1736527343130,0.8063,3252.8,3252.1,0.03074773]
[1736527343460,0.03083384,3252.7,3251.6,4.40921522]
[1736527343643,3.07458,3252.5,3251.6,3.79071951]
[1736527343843,0.81773384,3252.4,3251.6,3.79071951]
[1736527344833,0.81773384,3252.4,3251.6,3.82146988]
[1736527345261,0.81773384,3252.4,3251.6,3.79071951]
[1736527345570,0.38923138,3252.3,3251.6,3.82146988]
[1736527345868,0.81773384,3252.4,3251.7,3.07523]
[1736527346033,0.7869,3252.4,3252.0,3.49971951]
[1736527346237,0.7869,3252.4,3252.0,6.57470951]
[1736527346632,0.7869,3252.4,3252.1,0.03074634]
[1736527346864,6.1754,3252.8,3252.3,3.07473]
[1736527347066,6.1754,3252.8,3252.4,3.49971951]
[1736527348430,6.1754,3252.8,3252.4,3.48500972]
[1736527350275,6.1754,3252.8,3252.4,6.55962972]
[1736527350564,6.1754,3252.8,3252.5,3.07451]
[1736527350775,6.1754,3252.8,3252.4,3.48500972]
[1736527350956,6.1754,3252.8,3252.4,6.55963972]
[1736527351871,6.1754,3252.8,3252.4,3.48500972]
[1736527352076,0.03083384,3252.7,3252.1,3.0]
[1736527352261,0.03083384,3252.7,3252.0,3.49971951]
[1736527352465,3.83957,3252.6,3251.6,6.86604951]
[1736527352658,5.99754,3252.8,3251.9,0.61152607]
[1736527352659,0.8308,3252.2,3251.9,0.61152607]
[1736527352845,0.8308,3252.2,3251.6,6.57511951]
[1736527353045,0.8308,3252.2,3252.0,3.49971951]
[1736527353276,3.90448,3253.5,3252.1,3.0]
[1736527353590,0.03083384,3253.4,3252.5,3.0075]
[1736527353738,0.03083384,3253.4,3252.8,3.07427]
[1736527353941,0.8308,3253.5,3252.9,3.07417]
[1736527354232,0.165932,3253.7,3252.9,3.07417]
[1736527354233,0.165932,3253.7,3252.9,0.8311]
[1736527354434,0.165932,3253.7,3253.1,3.07391]
[1736527354633,0.165932,3253.7,3253.0,0.03073903]
[1736527354975,0.165932,3253.7,3253.2,3.07386]
[1736527355148,0.165932,3253.7,3253.0,3.10478676]
[1736527355354,0.165932,3253.7,3253.0,0.03073676]
[1736527355677,0.165932,3253.7,3253.2,3.07388]
[1736527356443,0.165932,3253.7,3253.3,3.7678]
[1736527356767,0.165932,3253.7,3253.5,3.07359]
[1736527356962,0.165932,3253.7,3253.6,6.60396208]
[1736527357161,0.165932,3253.7,3253.6,6.57322951]
[1736527357550,0.165932,3253.7,3253.6,3.49971951]
[1736527357943,0.165932,3253.7,3253.6,3.53045154]
[1736527358143,0.165932,3253.7,3253.6,6.60396154]
[1736527358364,0.165932,3253.7,3253.6,6.57322951]
[1736527358783,0.165932,3253.7,3253.6,6.58072951]
[1736527359545,0.165932,3253.7,3253.6,9.58072951]
[1736527359770,0.165932,3253.7,3253.6,10.93702951]
[1736527360109,0.165932,3253.7,3253.6,12.05983246]
[1736527360983,0.165932,3253.7,3253.6,12.08233246]
[1736527360984,2e-06,3253.7,3253.6,12.08233246]
[1736527363047,2e-06,3253.7,3253.6,11.50983246]
[1736527363250,2e-06,3253.7,3253.6,3.49971951]
[1736527364064,2e-06,3253.7,3253.3,0.60198753]
[1736527364256,0.8326,3253.6,3253.0,3.07406]
[1736527364453,0.8326,3253.6,3253.3,3.0738]
[1736527364788,2e-06,3253.7,3253.5,3.07352]
[1736527364954,2e-06,3253.7,3253.4,0.03073543]
[1736527365151,2e-06,3253.7,3253.5,3.0736]
[1736527365353,2e-06,3253.7,3253.4,0.44466001]
[1736527365753,2e-06,3253.7,3253.3,3.03073261]
[1736527366088,2e-06,3253.7,3253.3,3.03073441]
[1736527366449,2e-06,3253.7,3253.5,3.07358]
[1736527366655,2e-06,3253.7,3253.6,3.49971951]
[1736527366892,2e-06,3253.7,3253.3,3.0]
[1736527367200,2e-06,3253.7,3253.2,4.10851041]
[1736527367492,0.8272,3253.6,3252.8,3.49971951]
[1736527367658,0.8272,3253.6,3252.9,4.01911459]
[1736527367859,0.8272,3253.6,3253.1,3.07391]
[1736527368063,0.8272,3253.6,3253.1,3.1046463]
[1736527368367,2e-06,3253.7,3253.5,3.07358]
[1736527368552,2e-06,3253.7,3253.4,0.03073315]
[1736527368750,2e-06,3253.7,3253.4,3.10440315]
[1736527369253,2e-06,3253.7,3253.5,3.07359]
[1736527369454,2e-06,3253.7,3253.4,0.03073315]
[1736527370681,2e-06,3253.7,3253.2,3.49971951]
[1736527370867,2e-06,3253.7,3253.3,0.03073319]
[1736527371065,2e-06,3253.7,3253.3,0.60829691]
[1736527371275,2e-06,3253.7,3253.2,3.49971951]
[1736527372100,0.8156,3253.5,3252.5,0.7732]
[1736527372300,0.8156,3253.5,3253.0,3.07405]
[1736527372499,0.8156,3253.5,3253.1,3.10464637]
[1736527372674,0.8156,3253.5,3253.2,3.0]
[1736527372876,0.8156,3253.5,3252.8,3.49971951]
[1736527373076,3.88924,3253.5,3252.8,3.49971951]
[1736527373277,0.388924,3253.4,3252.8,7.18462531]
[1736527373475,0.8156,3253.5,3253.0,3.07408]
[1736527374286,0.8156,3253.5,3252.9,0.03074014]
[1736527374489,0.8156,3253.5,3252.9,3.10488014]
[1736527374700,0.8156,3253.5,3253.0,3.074]
[1736527375480,0.8156,3253.5,3252.9,0.03074014]
[1736527375818,0.8156,3253.5,3252.9,0.43130673]
[1736527375979,0.8156,3253.5,3252.9,3.10487014]
[1736527376179,0.8156,3253.5,3252.9,3.10486789]
[1736527376383,0.8156,3253.5,3253.0,3.07407]
[1736527376682,0.8156,3253.5,3252.8,3.07422]
[1736527376885,3.10461384,3253.4,3252.6,0.29]
[1736527377215,3.10461384,3253.4,3252.1,3.08236]
[1736527377216,0.782,3253.2,3252.0,3.49971951]
[1736527377370,0.03083384,3253.1,3252.3,0.61094355]
[1736527377572,3.10482384,3253.1,3252.3,0.61094355]
[1736527377973,3.07437,3252.7,3252.3,0.61094355]
[1736527378199,0.8102,3252.5,3252.3,0.61094355]
[1736527378509,0.8102,3252.9,3252.3,0.61094355]
[1736527378726,0.03083384,3252.8,3252.3,3.68567355]
[1736527378876,0.03083384,3252.8,3252.3,0.61094355]
[1736527379077,0.8102,3252.9,3252.3,0.61094355]
[1736527379278,0.8102,3252.9,3252.4,3.07463]
[1736527379588,0.7587,3253.2,3252.5,3.0075]
[1736527379801,0.7706,3253.5,3252.7,3.0]
[1736527380114,0.7706,3253.5,3252.9,3.0741]
[1736527380313,0.7706,3253.5,3252.4,0.3716318]
[1736527380314,0.03083384,3253.4,3252.4,0.3716318]
[1736527380474,3.10455384,3253.4,3252.5,3.07449]
[1736527380680,0.03083384,3253.4,3252.7,3.0743]
[1736527381214,0.7706,3253.5,3252.5,0.03073965]
[1736527381419,0.7706,3253.5,3252.8,3.07426]
[1736527381576,0.7706,3253.5,3252.5,0.0075]
[1736527381912,0.7706,3253.5,3252.4,6.07462]
[1736527381913,0.8032,3253.3,3252.3,0.61241514]
[1736527382211,0.8032,3253.3,3252.8,3.07426]
[1736527382440,0.8032,3253.3,3252.9,0.03073865]
[1736527382813,0.8032,3253.3,3252.4,0.29]
[1736527382991,0.8032,3253.3,3252.5,0.03074073]
[1736527383191,0.8032,3253.3,3252.6,3.07439]
[1736527383414,0.8032,3253.3,3252.5,0.03074073]
[1736527383415,0.8032,3253.3,3252.5,3.50491063]
[1736527383624,0.8265,3253.1,3251.7,0.8249]
[1736527383827,0.8265,3253.1,3252.2,0.62491341]
[1736527383997,0.03083384,3253.0,3252.4,3.07463]
[1736527384196,0.8265,3253.1,3252.5,0.0307448]
[1736527384597,3.07423,3252.9,3251.6,6.86505951]
[1736527384803,0.833,3252.7,3251.8,0.76899595]
[1736527385005,0.03083384,3252.6,3252.1,0.61890012]
[1736527386323,0.833,3252.7,3252.1,0.61890012]
[1736527386529,0.03083384,3252.6,3252.1,0.61890012]
[1736527386894,0.03083384,3252.6,3252.1,3.69381012]
[1736527387523,0.03083384,3252.6,3252.1,4.06626583]
[1736527388027,0.7976,3252.4,3251.8,0.76899595]
[1736527388194,0.03083384,3252.3,3251.6,3.36537]
[1736527388397,0.7976,3252.4,3251.8,0.60978688]
[1736527388619,0.85763384,3253.1,3252.4,3.07457]
[1736527388925,0.85763384,3253.1,3252.1,0.03074321]
[1736527389099,0.8268,3253.1,3252.6,3.07437]
[1736527389428,0.8268,3253.1,3252.9,3.07416]
[1736527389794,0.8042,3253.5,3252.9,3.07416]
[1736527390619,0.8042,3253.5,3253.0,3.074]
[1736527391054,0.8042,3253.5,3252.8,3.07423]
[1736527391354,0.8042,3253.5,3252.6,0.597437]
[1736527391355,0.03083384,3253.4,3252.6,3.671867]
[1736527391551,0.03083384,3253.4,3252.7,0.3671867]
[1736527391756,0.782,3253.3,3252.6,0.29]
[1736527391930,0.03083384,3253.2,3252.6,0.29]
[1736527393849,0.782,3253.3,3252.7,0.03074348]
[1736527394035,0.782,3253.3,3252.9,3.0741]
[1736527394456,0.80093584,3253.7,3253.0,0.03073923]
[1736527394756,0.80093584,3253.7,3253.0,3.10478923]
[1736527394757,0.770102,3253.7,3253.0,3.10478923]
[1736527394952,0.770102,3253.7,3253.1,3.38438892]
[1736527395421,0.770102,3253.7,3253.3,3.07379]
[1736527395621,0.770102,3253.7,3253.1,0.31047892]
[1736527395822,0.770102,3253.7,3252.6,3.36439]
[1736527396157,3.85128,3253.5,3252.5,3.07454]
[1736527396460,3.85128,3253.5,3252.5,0.31052805]
[1736527396461,3.10461384,3253.4,3252.5,0.31052805]
[1736527396641,3.10461384,3253.4,3252.4,0.62515583]
[1736527396642,3.07389,3253.2,3252.4,0.62515583]
[1736527396863,0.03083384,3253.1,3252.4,3.10537254]
[1736527397222,0.03083384,3253.1,3252.5,3.07453]
[1736527397525,0.03083384,3253.1,3252.2,0.29]
[1736527397526,0.7701,3253.3,3252.7,3.07427]
[1736527398257,0.7701,3253.3,3252.8,3.07426]
[1736527398761,0.7701,3253.3,3252.3,0.6065009]
[1736527398762,0.7701,3253.3,3252.5,3.03073998]
[1736527398923,0.7701,3253.3,3252.6,0.303074]
[1736527399125,0.7701,3253.3,3252.7,0.03073998]
[1736527399971,0.03083384,3253.2,3252.6,3.07441]
[1736527400579,0.7701,3253.3,3253.1,3.07398]
[1736527400793,0.822,3253.6,3252.8,0.0075]
[1736527400997,0.822,3253.6,3252.8,0.0382363]
[1736527401321,2e-06,3253.7,3252.8,6.53795581]
[1736527401437,2e-06,3253.7,3253.3,3.07373]
[1736527401630,2e-06,3253.7,3253.4,0.03073365]
[1736527401833,2e-06,3253.7,3253.6,3.07351]
[1736527402134,2e-06,3253.7,3253.6,7.13072951]
[1736527402451,2e-06,3253.7,3253.6,10.13072951]
[1736527402656,2e-06,3253.7,3253.6,11.98177923]
[1736527403597,2e-06,3253.7,3253.6,11.99677923]
[1736527406354,2e-06,3253.7,3253.6,11.42427923]
[1736527406701,2e-06,3253.7,3253.6,11.71427923]
[1736527407695,2e-06,3253.7,3253.6,12.26427923]
[1736527407868,2e-06,3253.7,3253.6,7.94477923]
[1736527408508,2e-06,3253.7,3253.6,10.65477923]
[1736527410309,2e-06,3253.7,3253.6,11.20477923]
[1736527410467,2e-06,3253.7,3253.6,11.21227923]
[1736527410990,2e-06,3253.7,3253.6,12.00447923]
[1736527411355,2e-06,3253.7,3253.6,12.01197923]
[1736527412075,2e-06,3253.7,3253.6,11.99697923]
[1736527413557,2e-06,3253.7,3253.6,10.65477923]
[1736527413768,2e-06,3253.7,3253.6,6.58072951]
[1736527414364,2e-06,3253.7,3253.6,6.57322951]
[1736527414616,2e-06,3253.7,3253.4,3.68343772]
[1736527415155,2e-06,3253.7,3253.5,3.10426406]
[1736527415378,2e-06,3253.7,3253.6,3.07351]
[1736527415601,2e-06,3253.7,3253.4,3.68344772]
[1736527415779,2e-06,3253.7,3253.3,3.07377]
[1736527416327,2e-06,3253.7,3253.4,0.03073388]
[1736527416480,2e-06,3253.7,3253.6,3.07351]
[1736527416824,2e-06,3253.7,3253.6,3.10424123]
[1736527417659,2e-06,3253.7,3253.4,3.07365]
[1736527417902,2e-06,3253.7,3253.2,3.49971951]
[1736527418079,2e-06,3253.7,3253.2,7.25991846]
[1736527418566,2e-06,3253.7,3253.3,3.07377]
[1736527418963,2e-06,3253.7,3253.4,0.03073388]
[1736527419163,2e-06,3253.7,3253.4,3.10434388]
[1736527419875,2e-06,3253.7,3253.2,7.25994846]
[1736527420084,2e-06,3253.7,3253.3,3.83046873]
[1736527420309,2e-06,3253.7,3253.3,0.75672873]
[1736527420517,2e-06,3253.7,3253.6,3.07351]
[1736527420829,2e-06,3253.7,3253.6,3.10424124]
[1736527421207,2e-06,3253.7,3253.3,4.08971485]
[1736527421433,2e-06,3253.7,3253.4,0.03073379]
[1736527421745,2e-06,3253.7,3253.3,0.72599485]
[1736527422038,2e-06,3253.7,3253.2,7.48132297]
[1736527423043,0.7738,3253.6,3252.8,3.07423]
[1736527423250,0.03083384,3253.5,3252.4,3.49971951]
[1736527423469,0.03083384,3253.5,3252.7,3.07434]
[1736527424146,0.7738,3253.6,3253.1,0.6118542]
[1736527425169,0.7738,3253.6,3253.1,0.64259102]
[1736527425313,0.7738,3253.6,3253.1,0.03073682]
[1736527425514,0.7738,3253.6,3252.9,3.07408]
[1736527425851,0.7738,3253.6,3253.0,3.07408]
[1736527426048,0.7738,3253.6,3253.1,3.10470683]
[1736527426208,0.7738,3253.6,3252.9,3.68503932]
[1736527426408,0.7738,3253.6,3253.0,3.10481685]
[1736527426945,0.03083384,3253.5,3252.9,0.61086932]
[1736527427167,0.7855,3253.4,3252.6,3.07442]
[1736527427375,0.03083384,3253.3,3252.6,3.07442]
[1736527427871,0.03083384,3253.3,3252.5,0.93729692]
[1736527428229,0.03083384,3253.3,3252.6,3.07444]
[1736527428667,0.03083384,3253.3,3252.7,3.07434]
[1736527429172,0.7855,3253.4,3252.8,0.030741]
[1736527429472,0.7855,3253.4,3252.8,3.07426]
[1736527430035,0.7855,3253.4,3252.5,4.01177692]
[1736527430333,0.78933384,3253.3,3252.5,0.93729692]
[1736527430588,0.7585,3252.9,3252.5,0.93729692]
[1736527430734,0.03083384,3252.8,3252.5,0.93729692]
[1736527430933,0.03083384,3252.8,3252.5,0.6159235]
[1736527431759,0.7585,3252.9,3252.5,0.6159235]
[1736527432087,0.7585,3252.9,3252.6,3.10519487]
[1736527432288,0.7585,3252.9,3252.6,3.10519124]
[1736527432448,0.7585,3252.9,3252.7,0.37211147]
[1736527434525,0.7804,3253.4,3252.7,0.37211147]
[1736527434657,5.38,3253.6,3252.8,0.81624123]
[1736527434864,0.780402,3253.7,3253.0,3.074]
[1736527435119,0.81123584,3253.7,3253.0,3.074]
[1736527435415,3.88469584,3253.7,3252.8,3.07423]
[1736527435557,0.7885,3253.5,3252.6,3.36344]
[1736527435756,0.03083384,3253.4,3252.6,3.36344]
[1736527436177,0.7666,3253.3,3252.5,0.6159235]
[1736527436392,0.03083384,3253.2,3252.5,3.6904535]
[1736527437367,0.79743384,3253.3,3252.7,3.07428]
[1736527437555,0.7666,3253.3,3252.7,3.07428]
[1736527438077,0.03083384,3253.2,3252.5,0.6159235]
[1736527438281,0.03083384,3253.2,3252.5,1.04461542]
[1736527438480,0.03083384,3253.2,3252.5,4.11916542]
[1736527438680,0.03083384,3253.2,3252.5,4.08842185]
[1736527438919,0.03083384,3253.2,3252.5,1.01387185]
[1736527439133,0.03083384,3253.2,3252.5,0.6159235]
[1736527439479,0.03083384,3253.2,3252.5,3.6904735]
[1736527439837,0.79743384,3253.3,3252.6,3.10517328]
[1736527440036,0.79743384,3253.3,3252.7,3.07435]
[1736527440332,0.7666,3253.3,3252.7,3.07435]
[1736527440489,0.7666,3253.3,3252.6,0.03074328]
[1736527440691,0.7666,3253.3,3252.7,3.07435]
[1736527441978,0.7666,3253.3,3252.8,0.0382407]
[1736527442212,2e-06,3253.7,3253.0,3.07407]
[1736527442394,0.8106,3253.6,3253.0,3.07407]
[1736527442890,0.8106,3253.6,3252.8,0.03823685]
[1736527443097,0.8106,3253.6,3253.1,3.07399]
[1736527443297,0.8106,3253.6,3253.2,0.03073682]
[1736527443499,2e-06,3253.7,3253.4,3.0737]
[1736527444033,2e-06,3253.7,3253.1,3.38438268]
[1736527444339,2e-06,3253.7,3253.3,3.07379]
[1736527444703,2e-06,3253.7,3253.1,0.31047268]
[1736527444899,2e-06,3253.7,3253.2,0.63717701]
[1736527445303,0.8298,3253.6,3253.0,3.07405]
[1736527445479,0.8298,3253.6,3253.1,0.03073676]
[1736527445679,0.8298,3253.6,3253.0,4.01397528]
[1736527446296,0.8298,3253.6,3253.1,0.03073675]
[1736527446509,0.8298,3253.6,3253.1,3.10471675]
[1736527446831,0.03083384,3253.5,3253.0,0.60287028]
[1736527446987,0.03083384,3253.5,3252.9,3.0741]
[1736527446988,0.03083384,3253.5,3252.8,0.289]
[1736527447195,0.42424042,3253.5,3252.7,0.61844689]
[1736527447394,3.90381,3253.4,3252.7,0.61844689]
[1736527447710,0.03083384,3253.3,3252.7,0.61844689]
[1736527448453,0.8301,3253.4,3252.7,0.61844689]
[1736527448756,0.8301,3253.4,3253.1,3.07392]
[1736527449206,2e-06,3253.7,3253.3,3.07377]
[1736527449407,2e-06,3253.7,3252.9,3.84607]
[1736527449726,0.03083584,3253.7,3252.8,3.07418]
[1736527449931,0.7584,3253.6,3252.8,3.07418]
[1736527450094,0.03083384,3253.5,3252.7,0.61844689]
[1736527450303,0.7584,3253.4,3252.7,0.61844689]
[1736527450502,0.03083384,3253.3,3252.6,3.36341]
[1736527450766,3.10467384,3253.3,3252.4,6.57432951]
[1736527451412,3.10467384,3253.3,3252.6,0.62249909]
[1736527451607,0.03083384,3253.3,3252.6,3.69694909]
[1736527451806,0.7584,3253.4,3252.7,3.10503282]
[1736527452364,0.7584,3253.4,3252.7,0.03074282]
[1736527452568,0.759802,3253.7,3252.9,3.8193]
[1736527452867,0.759802,3253.7,3253.3,3.07377]
[1736527453203,0.759802,3253.7,3253.0,0.76338608]
[1736527453523,0.759802,3253.7,3253.0,0.03073415]
[1736527453927,0.759802,3253.7,3253.4,3.07367]
[1736527454146,2e-06,3253.7,3253.4,3.07367]
[1736527454625,2e-06,3253.7,3253.0,0.0075]
[1736527454823,2e-06,3253.7,3253.1,3.07389]
[1736527455278,2e-06,3253.7,3253.0,0.03073412]
[1736527455474,2e-06,3253.7,3253.2,3.07383]
[1736527455853,2e-06,3253.7,3253.6,3.07351]
[1736527456236,2e-06,3253.7,3253.6,6.66174259]
[1736527456419,0.7584,3254.6,3254.1,3.07296]
[1736527456624,0.7584,3254.6,3253.9,5.95084341]
[1736527456846,0.7584,3254.6,3254.0,3.69894223]
[1736527457066,0.7584,3254.6,3254.3,0.62850915]
[1736527457839,0.85873384,3255.0,3254.4,3.07271]
[1736527458147,0.85873384,3255.0,3254.3,3.70133915]
[1736527458828,0.8279,3255.0,3254.3,0.62850915]
[1736527459067,0.03083384,3255.7,3255.0,3.07219]
[1736527459270,0.03083384,3255.9,3255.1,0.68645051]
[1736527459469,0.8279,3256.0,3255.8,3.07141]
[1736527459670,0.8279,3256.0,3255.4,3.07181]
[1736527459671,0.8136,3256.6,3256.0,3.07122]
[1736527459986,0.8136,3257.2,3256.2,6.07099]
[1736527460142,0.8136,3257.2,3256.3,0.03070311]
[1736527460477,3.07034,3257.0,3256.0,0.289]
[1736527460682,0.7742,3256.6,3255.6,3.07156]
[1736527460977,0.03083384,3256.5,3255.7,3.71554713]
[1736527461183,0.03083384,3256.5,3255.7,3.68483435]
[1736527461487,0.03083384,3256.5,3255.6,0.60499161]
[1736527462011,0.165932,3256.9,3256.3,0.0075]
[1736527462158,0.165932,3256.9,3256.7,3.07054]
[1736527462507,0.03083384,3257.5,3256.8,7.42729]
[1736527462812,0.8156,3258.5,3257.9,3.06945]
[1736527462985,0.8156,3258.5,3257.7,3.06964]
[1736527463152,0.03083384,3258.6,3258.1,3.0692]
[1736527463353,0.03083384,3259.0,3258.1,3.0692]
[1736527463667,0.84136107,3259.1,3258.5,3.48514669]
[1736527463855,0.84136107,3259.1,3258.7,3.0687]
[1736527464051,0.84136107,3259.1,3258.6,0.289]
[1736527464280,0.8156,3258.9,3257.7,3.06965]
[1736527464489,0.0075,3258.7,3257.7,3.0]
[1736527464694,0.39974638,3258.7,3257.6,7.44400762]
[1736527464852,0.0225,3258.5,3257.2,6.55520669]
[1736527465047,0.0075,3258.3,3257.3,0.61101223]
[1736527465679,0.25,3259.0,3257.3,0.61101223]
[1736527465680,0.03083384,3258.8,3257.9,3.48514669]
[1736527465880,1.4191736,3259.7,3258.7,3.48514669]
[1736527465881,0.03083384,3259.6,3258.7,3.48514669]
[1736527466120,0.8156,3259.7,3258.9,3.06852]
[1736527466277,0.8156,3259.7,3259.0,3.38809033]
[1736527466478,0.03083384,3259.6,3258.9,0.289]
[1736527466679,0.03083384,3259.6,3258.8,0.289]
[1736527466969,0.03083384,3259.6,3258.8,3.35759]
[1736527467205,0.03083384,3259.6,3259.0,3.06842]
[1736527467416,0.8156,3259.7,3259.1,0.03067995]
[1736527467921,0.8156,3259.7,3259.2,3.0682]
[1736527468131,0.8156,3259.7,3259.3,3.06808]
[1736527468332,0.8156,3259.7,3259.1,3.09899995]
[1736527468477,0.03083384,3259.6,3259.0,0.31867996]
[1736527468675,0.03083384,3259.6,3258.7,4.10581068]
[1736527468676,0.03083384,3259.6,3258.8,0.288]
[1736527469207,0.39142338,3259.5,3258.5,6.06888]
[1736527469404,0.04583384,3259.4,3257.9,3.83366136]
[1736527469612,0.0075,3259.0,3257.9,6.84260669]
[1736527469922,0.03833384,3259.0,3258.0,3.03069044]
[1736527470145,0.0075,3258.9,3257.8,0.288]
[1736527470288,0.0075,3258.8,3257.8,0.288]
[1736527470485,0.0075,3258.7,3257.8,0.288]
[1736527470853,0.8253,3258.6,3257.8,0.288]
[1736527471003,0.03083384,3258.5,3257.8,0.288]
[1736527471347,0.03083384,3258.5,3257.4,0.62273019]
[1736527471348,0.0225,3258.4,3257.1,3.07015]
[1736527471554,0.0225,3258.4,3257.3,3.07]
[1736527471713,0.31222338,3258.3,3257.3,3.07]
[1736527471911,0.03083384,3258.2,3257.3,3.07]
[1736527472290,0.03083384,3258.2,3257.2,0.03069732]
[1736527472533,0.8253,3258.6,3257.8,3.0]
[1736527472690,0.8253,3258.6,3258.2,3.06917]
[1736527473331,0.8253,3258.6,3257.7,3.06965]
[1736527473332,0.8253,3258.6,3258.1,3.06927]
[1736527473551,0.8253,3258.6,3258.3,3.06903]
[1736527473851,0.8253,3258.6,3258.1,3.40686753]
[1736527473993,0.8253,3258.6,3257.9,6.06943]
[1736527474504,0.8253,3258.6,3258.0,3.06934]
[1736527474716,0.165932,3260.2,3259.1,0.0075]
[1736527475052,0.7876,3260.1,3260.0,3.06748]
[1736527475259,0.165932,3260.2,3260.1,3.06739]
[1736527476016,0.165932,3260.2,3260.1,6.55253669]
[1736527476205,0.165932,3260.2,3260.1,10.57768036]
[1736527476425,2e-06,3260.2,3260.1,10.57768036]
[1736527476966,2e-06,3260.2,3260.1,11.13518036]
[1736527477309,2e-06,3260.2,3260.1,7.65003367]
[1736527477510,2e-06,3260.2,3260.1,8.2589377]
[1736527478980,2e-06,3260.2,3260.1,6.67629403]
[1736527479105,2e-06,3260.2,3259.9,4.295916]
[1736527479305,2e-06,3260.2,3260.1,3.06739]
[1736527479720,2e-06,3260.2,3260.1,3.09805844]
[1736527480066,2e-06,3260.2,3259.5,4.00911024]
[1736527480224,2e-06,3260.2,3259.8,3.06765]
[1736527480436,2e-06,3260.2,3259.6,0.03067324]
[1736527480437,2e-06,3260.2,3259.6,3.09850324]
[1736527480767,2e-06,3260.2,3259.2,3.06815]
[1736527480768,0.7724,3260.1,3259.2,3.06815]
[1736527480969,0.7724,3260.1,3259.5,3.06788]
[1736527481268,0.7724,3260.1,3259.3,3.06813]
[1736527481635,0.7724,3260.1,3259.1,0.03067898]
[1736527481829,0.7724,3260.1,3259.4,3.06804]
[1736527482216,0.7724,3260.1,3259.1,0.03067898]
[1736527483418,0.7724,3260.1,3259.4,3.06804]
[1736527483746,0.7724,3260.1,3259.2,3.06821]
[1736527484114,3.83982,3260.1,3259.0,3.06839]
[1736527484321,3.4515222,3260.0,3258.8,3.06853]
[1736527484522,3.4515222,3260.0,3258.9,3.06847]
[1736527484717,0.3839822,3260.0,3259.0,0.03068068]
[1736527484945,0.3839822,3260.0,3259.3,3.06808]
[1736527485133,0.7724,3260.1,3259.4,3.06802]
[1736527485434,0.7724,3260.1,3259.3,3.06813]
[1736527486129,0.7724,3260.1,3259.1,3.06829]
[1736527486331,3.06758,3259.9,3258.9,3.06849]
[1736527486530,0.8117,3259.4,3258.4,3.06889]
[1736527486736,0.387966,3259.3,3258.4,3.06889]
[1736527486963,0.387966,3259.3,3258.0,4.00911024]
[1736527487130,3.06817,3259.3,3258.0,4.00911024]
[1736527487331,3.06817,3259.3,3258.2,3.06914]
[1736527487662,3.06817,3259.3,3258.3,3.06908]
[1736527487818,0.8117,3259.4,3258.5,3.06888]
[1736527488028,0.8117,3259.4,3258.3,3.06905]
[1736527488249,3.06816,3259.3,3258.3,3.06905]
[1736527488567,0.387986,3259.2,3258.3,3.09973754]
[1736527488769,3.456256,3259.2,3258.2,0.60770288]
[1736527489143,0.387986,3259.2,3258.2,0.63839129]
[1736527489461,3.456256,3259.2,3258.1,3.09992839]
[1736527489626,3.456256,3259.2,3258.2,3.06916]
[1736527489830,0.3456256,3259.1,3258.2,3.06916]
[1736527490455,3.84571,3259.0,3258.0,3.06935]
[1736527490767,3.06852,3258.9,3257.8,3.06952]
[1736527491127,3.06852,3258.9,3257.9,3.06945]